{"text_format":"1","workbook":"xlsx","n_sheets":21,"sheets":["Meeting April 2024","Guest in April","Meeting May 2024","Guest in May 2024","Meeting June 2024","Guest June 2024","Meeting August 2024","Meeting Jully 2024","Guest Jully 2024","Guest August 2024","Meeting September 2024","Guest September 2024","Meeting October 2024","Guest October 2024","Meeting November 2024","Guest November 2024","Meeting December 2024","Guest December 2024","Guest January 2025","Meeting January 2025","January 2025"],"not_rendered":{"charts":0,"images":0,"macros":0,"external_links":0,"defined_names":1,"comments":0,"pivot_tables":0},"unopened":[],"bounds":{"document_bytes":16777216,"sheet_cells":100000,"rows_first":2000,"rows_last":500,"rows_between":2000,"halvings":0,"cell_chars":16384,"cell_head_chars":4096},"cells_cut":0,"cells_raw":0,"read":"whole","date_system":"1900"}

{"sheet":"Meeting April 2024","index":0,"n_rows":16,"n_cols":5,"rows_kept":16,"cut":false,"hidden":true,"merged":[[1,1,1,3],[3,1,4,1],[7,1,8,1],[10,1,11,1]]}
[]
[null,"MEETING AND TRAINING IN APRIL"]
[null,"DATE","AGENDA","NUMBER OF PEOPLE"]
[null,"2024-04-03","Finance meeting",5]
[null,null,"Task force meeting (Illegar miner)",15]
[null,"2024-04-04","Task force meeting (Illegar miner)",20]
[null,"2024-04-11","Province administration& Rutongo mines",10]
[null,"22/4/2024 to 26/4/2024","Front line supervisory training",25]
[null,null,"Bobcat training",8]
[null,"2024-04-23","SML (leadership training)",14]
[null,"2024-04-26","Interview of subco",10]
[null,null,null,null,"Hano ni ya nama yaberaga muri boardroom abantu bagenda basimburana ntag nzi uko yitwa"]
[null,"2024-04-27","Bobcat training",8]
[null,"29/04/2024 to 30/4/2024","Front line supervisory training",25]
[null,"2024-04-29","Investigation of shooting incindent done by ISCO",8]
[null,"2024-04-30","HIRA (Leadership training)",25]

{"sheet":"Guest in April","index":1,"n_rows":13,"n_cols":4,"rows_kept":13,"cut":false,"hidden":true,"merged":[]}
[]
[null,"NAMES","DEPARTMENT","TIME IN - TIME OUT"]
[null,"Quintin ensuing",null,"7/4/2024  - 14/4/2024"]
[null,"Quintin grix",null,"7/4/2024  - 14/4/2024"]
[null,"Jo daneel","SHEC","8/4/2024  -  16/4/2024"]
[null,"Johan albert","Engeneering","15/4/2024  - 19/4/2024"]
[null,"Fanie fereira","HR","14/4/2024 -  5/5/2024"]
[null,"Pieter","HR","14/4/2024 - 5/5/2024"]
[null,"Lina ","HR","14/4/2024 - 27/4/2024"]
[null,"Chandela","HR","22/4/2024 - 27/4/2024"]
[null,"Gegary brooker",null,"22/4/2024 - 5/5/2024"]
[null,"Jaque botha","SUPPLY CHAIN","21/4/2024 - 25/4/2024"]
[null,"Edward","Engeneering","22/4/2024 - 28/4/2024"]

{"sheet":"Meeting May 2024","index":2,"n_rows":16,"n_cols":3,"rows_kept":16,"cut":false,"hidden":true,"merged":[[1,0,1,2],[10,0,11,0],[12,0,13,0]]}
[]
["MEETING AND TRAINING IN MAY"]
["DATE","AGENDA","NUMBER OF PEOPLE"]
["29/04/2024 to 4/5/2024","Front line supervisory training",25]
["2024-05-03","Integrated T.S planning meeting",40]
["04/05/2024 AND 6/5/2024","Sampleling consultant meeting",10]
["2024-05-09","Sampleling consultant meeting",5]
["2024-05-10","Geologist meeting with consultant",9]
["2024-05-17","Visible felt leadership training",25]
["20/5/2024 to 24/5/2024","Front line supervisory training",26]
["2024-05-23","Supply chain visitors from Musha & ETI",6]
[null,"RMB inspection",17]
["2024-05-27","Global link solution",8]
[null,"IPRS visitors in mining",21]
["2024-05-29","Subcontractor Model review",19]
["27/5/2024 to 31/5/2024","Front line supervisory training",24]

{"sheet":"Guest in May 2024","index":3,"n_rows":15,"n_cols":4,"rows_kept":15,"cut":false,"hidden":true,"merged":[[1,1,1,3]]}
[]
[null,"Guest in May 2024"]
[]
[]
[null,"NAMES","DEPARTMENT","TIME IN - TIME OUT"]
[null,"Fanie fereira","HR","14/4/2024 -  5/5/2024"]
[null,"Pieter","HR","14/4/2024 - 5/5/2024"]
[null,"Gegary brooker","Tech service","22/4/2024 - 5/5/2024"]
[null,"Siobhan joubert","Tech service","2/5/2024 - 10/5/2024"]
[null,"Andrew nel clay","Tech service","2/5/2024 - 10/5/2024"]
[null,"Clive brown","Tech service","2/5/2024 - 10/5/2024"]
[null,"Gerrit","SHEC","5/5/2024 - 13/5/2024"]
[null,"Jo Daneels","SHEC","16/5/2024 - 19/5/2024"]
[null,"Fanie fereira","HR","18/5/2024 - 2/6/2024"]
[null,"Rina muller","HR","18/5/2024 - 2/6/2024"]

{"sheet":"Meeting June 2024","index":4,"n_rows":19,"n_cols":3,"rows_kept":19,"cut":false,"hidden":true,"merged":[[14,0,15,0],[1,0,1,2],[7,0,8,0],[10,0,12,0]]}
[]
["MEETING AND TRAINING IN JUNE"]
["DATE","AGENDA","NUMBER OF PEOPLE"]
["2024-06-05","Rutongo mines special cell",26]
["2024-06-06","Visible felt leadership training",22]
["2024-06-07","RPF meeting with mayor",110]
["2024-06-10"," Meeting of GM with engeneering department",12]
["10/6/2024 up to 15/6/2024","Blasting certificate programe training",26]
[null,"Bobcat training",6]
["2024-06-11","RWIMA and H.D.I meeting",150]
["2024-06-13","Subcontractor review",11]
[null,"Trynity Rutongo management meeting",8]
[null,"REWU representative meeting",11]
["17/6/2024 up to 21/6/2024","Blasting certificate programe training",26]
["2024-06-20","Minister of gender visit",50]
[null,"Ground control training",25]
["24/6/2024 up to 28/6/2024","Blasting certificate programe training",26]
["2024-06-25","Next step - Mining contractor review",14]
["2024-06-27","Rescue refresher",6]

{"sheet":"Guest June 2024","index":5,"n_rows":15,"n_cols":3,"rows_kept":15,"cut":false,"hidden":true,"merged":[[1,0,1,2]]}
[]
["Guest in June 2024"]
[]
[]
["NAMES","DEPARTMENT","TIME IN - TIME OUT"]
["Jeanette Erasmus","SHEC","4/6/2024 - 8/6/2024"]
["Nadine coetzer","SHEC","4/6/2024 - 8/6/2024"]
["Leon melville koekender","SHEC","4/6/2024 - 8/6/2024"]
["Jo daneels","SHEC","4/6/2024 - 8/6/2024"]
["Pieter albert","SML","8/6/2024 - 15/6/2024"]
["Fanny ferreira","SML","8/6/2024 - 29/6/2024"]
["Chandela","SML","9/6/2024 - 16/6/2024"]
["Mike jacklin","Procurement","15/06/2024 - 21/6/2024"]
["Gerrit ferreira","SHEC","17/6/2024 - 23/6/2024"]
["Pieter albert","SML","22/6/2024 - "]

{"sheet":"Meeting August 2024","index":6,"n_rows":18,"n_cols":3,"rows_kept":18,"cut":false,"hidden":true,"merged":[[1,0,1,2],[13,0,14,0],[16,0,17,0]]}
[]
["MEETING AND TRAINING IN AUGUST 2024"]
["DATE","AGENDA","NUMBER OF PEOPLE"]
["2024-08-01","CEO and HR manager meeting",10]
["5/8/2024 to 9/8/2024","Driver training",5]
["08/08/2024 to 9/8/2024","HOD training",17]
["2024-08-09","RMB inspection",13]
["12/08/2024  to 16/8/2024","Supervisory training",20]
["13/8/2024 to 14/8/2024","HOD training",17]
["2024-08-13","Ambasador visit",20]
["15/08/2024 to 16/2024","HOD training",14]
["19/8/2024 to 23/8/2024","Supervisory training",14]
["2024-08-20","GM meeting",10]
["2024-08-27","Michael meeting",6]
[null,"CEO meeting",8]
["2024-08-28","Performance management training",50]
["2024-08-30","Performance management training",40]
[null,"CEO meeting"," "]

{"sheet":"Meeting Jully 2024","index":7,"n_rows":20,"n_cols":3,"rows_kept":20,"cut":false,"hidden":true,"merged":[[1,0,1,2],[9,0,10,0]]}
[]
["MEETING AND TRAINING IN JULLY 2024"]
["DATE","AGENDA","NUMBER OF PEOPLE"]
["2024-07-02"," HIRA",15]
["2024-07-02","A.P handover",20]
["2024-07-04","HIRA",10]
["2024-07-11","HOD Training",25]
["2024-07-12","HOD Training",20]
["2024-07-17","HOD Training",20]
["2024-07-18","GM meeting",14]
[null,"HOD Training",15]
["2024-07-19","Skills development summit",50]
["22/7/2024 - 26/7/2024","Flontline supervisory training",21]
["2024-07-22"," CEO meeting",15]
["29/7/2024 -2/8/2024","Flontline supervisory training",25]
["2024-07-29","Group leadership",16]
["2024-07-31","Task force in illegal mining activities",14]
[]
[]
[null,"  "]

{"sheet":"Guest Jully 2024","index":8,"n_rows":15,"n_cols":3,"rows_kept":15,"cut":false,"hidden":true,"merged":[[1,0,1,2]]}
[]
["Guest in Jully 2024"]
[]
[]
["NAMES","DEPARTMENT","TIME IN - TIME OUT"]
["Chandela","SML","07/07/2024 - 16/7/2024"]
["Rina muller","SML","8/7/2024 - 20/7/2024"]
["Pieter albert","SML","14/7/2024 - 31/7/2024"]
["Zack kaemmerlen",null,"16/7/2024 - 31/7/2024"]
["Graham mark",null,"23/7/2024 - 27/7/2024"]
["Luca McCormick",null,"23/07/2024 - 31/7/2024"]
["Jo daneels","SHEC","23/7/2024 - 3/8/2024"]
["Quinton","TECH.SERV","25/7/2024 - 26/7/2024"]
["Fanie ferreira","SML","27/7/2024 - 24/8/2024"]
["Gerrit ferreira","SHEC","28/7/2024 - 10/8/2024"]

{"sheet":"Guest August 2024","index":9,"n_rows":11,"n_cols":3,"rows_kept":11,"cut":false,"hidden":true,"merged":[]}
[]
["NAMES","DEPARTMENT","TIME IN - TIME OUT"]
["Fanie ferreira","SML","27/7/2024 - 24/8/2024"]
["Gerrit ferreira","SHEC","28/7/2024 - 10/8/2024"]
["Abdallah chandela","SML","4/8/2024 - 10/8/2024"]
["Pieter","SML","11/8/2024 - 21/8/2024"]
["Lina muller","SML","7/8/2024 - 17/8/2024"]
["Gerrit ferreira","SHEC","25/8/2024 - 7/9/ 2024"]
["Michael","Supply chain","26/8/2024 - 3/9/2024"]
["Andrew krugger","Finance","26/8/2024 - 3/9/2024"]
["JO danniel","SHEC","30/8/2024 - 5/9/2024"]

{"sheet":"Meeting September 2024","index":10,"n_rows":17,"n_cols":4,"rows_kept":17,"cut":false,"hidden":true,"merged":[[1,1,1,3]]}
[]
[null,"MEETING AND TRAINING IN SEPTEMBER 2024"]
[null,"DATE","AGENDA","NUMBER OF PEOPLE"]
[null,"2/9/2024 - 3/9/2024","Bobcat operational training",11]
[null,"2/9/2024 - 4/9/2024","Management meeting",20]
[null,"4/9/2024 - 5/9/2024","Bobcat operational training",13]
[null,"2024-04-09","RMB visit",24]
[null,"2024-05-09","Management meeting",5]
[null,"6/9/2024 - 7/9/2024","Bobcat operational training",7]
[null,"2024-06-09","Mine rescue refreshment training",15]
[null,"16/9/2024 - 20/9/2024","Supervisory program training",23]
[null,"17/9/2024","CEO Meeting",7]
[null,"20/9/2024","Mine rescue refreshment training",8]
[null,"23/9/2024 - 27/9/2024","Supervisory program training",26]
[null,"25/9/2024","Planning meeting",10]
[null,"26/9/2025","RMB and Environment meeting",14]
[null,"27/9/2024","Mine rescue refreshment training",16]

{"sheet":"Guest September 2024","index":11,"n_rows":14,"n_cols":4,"rows_kept":14,"cut":false,"hidden":true,"merged":[]}
[]
[]
[null,"NAMES","DEPARTMENT","TIME IN - TIME OUT"]
[null,"Chandela","SML","1/9/2024 - 8/9/2024"]
[null,"Clive Brown","Tech.service"," 2/9/2024 -5/9/2024"]
[null,"Greg Brooker","Tech.service","2/9/2024 -5/9/2024"]
[null,"Freddy Chikwiri","Tech.service","8/9/2024 - 14/9/2024"]
[null,"Pieter Albert","SML","15/9/2024 - 28/9/2024"]
[null,"Dusty","SML","15/9/2024 - 28/9/2024"]
[null,"Christopher Gerard o' Neill","Tech.service","16/9/2024 - 18/10/2024"]
[null,"William emmanuel","Engeneering","22/9/2024 -"]
[null,"chandela","SML","29/9/2024 - 12/10/2024"]
[null,"Lina Muller","SML","29/9/2024 - 8/10/ 2024"]
[null,"Gerrit Fereira","SHEC","30/9/2024 -"]

{"sheet":"Meeting October 2024","index":12,"n_rows":11,"n_cols":4,"rows_kept":11,"cut":false,"hidden":true,"merged":[[1,1,1,3]]}
[]
[null,"MEETING AND TRAINING IN OCTOBER 2024"]
[null,"DATE","AGENDA","NUMBER OF PEOPLE"]
[null,"2024-03-10"," German Minister visit",15]
[null,"3/10/2024 - 4/10/2024","POC  Head of Department training",15]
[null,"7/10/2024 - 9/10/2024","Locomotive Operator training",13]
[null,"10/10/2024 - 11/10/2024","Locomotive Operator Assistant training",13]
[null,"14/10/2024 - 18/10/2024","Frontline Supervisory program Group 7 phaseB",14]
[null,"21/10/2024 - 25/10/2024","Frontline Supervisory program Group 6 phaseB",21]
[null,"25/10/2024","Leadership Meeting",20]
[null,"28/10/2024 - 30/10/2024","Explosives inspection",15]

{"sheet":"Guest October 2024","index":13,"n_rows":10,"n_cols":4,"rows_kept":10,"cut":false,"hidden":true,"merged":[]}
[]
[]
[null,"NAMES","DEPARTMENT","TIME IN - TIME OUT"]
[null,"Chandela  Abdarhan","SML Change","6/10/2024 - 12/10/2024"]
[null,"Pieter Albert","SML Change","13/10/2024 - 26/10/2024"]
[null,"Frans","SML Change","13/10 2024 - 26/10/2024"]
[null,"Bonitha botha","Engeneering","14/10/2024 -17/10/2024"]
[null,"Quinton","Mining","19/10/2024 - 22/10/2024"]
[null,"Chrive brown","T.service","19/10/2024 - 26/10/2024"]
[null,"Shane Ryan","C.O.O","23/10/2024 - "]

{"sheet":"Meeting November 2024","index":14,"n_rows":16,"n_cols":4,"rows_kept":16,"cut":false,"hidden":true,"merged":[[1,1,1,3],[9,1,10,1]]}
[]
[null,"MEETING AND TRAINING IN NOVEMBER 2024"]
[null,"DATE","AGENDA","NUMBER OF PEOPLE"]
[null,"4/11/2024 - 8/11/2024","Blasting certificate pilot program",23]
[null,"5/11/2024 - 6/11/2024","Budget review",25]
[null,"11/11/2024 - 15/11/2024","Blasting certificate pilot program",24]
[null,"2024-11-11","HIRA",6]
[null,"13/11/2024","Geologist session",13]
[null,"18/11/2024 - 22/11/2024","Blasting certificate pilot program",24]
[null,"18/11/2024","RRA Auditor",10]
[null,null,"AP trainning",18]
[null,"20/11/2024","Budget review",10]
[null,"22/11/2024","Planning meeting",10]
[null,"25/11/2024 - 29/11/2024","Supervisory training",18]
[null,"27/11/2024 - 30/11/2024","\"",18]
[null,null,"\""]

{"sheet":"Guest November 2024","index":15,"n_rows":10,"n_cols":4,"rows_kept":10,"cut":false,"hidden":true,"merged":[]}
[]
[]
[null,"NAMES","DEPARTMENT","TIME IN - TIME OUT"]
[null,"Pieter Albert","SML Change","10/11/2024 - "]
[null,"Fanie ferreira","SML Change","3/11/2024 - 28/11/2024"]
[null,"Siobhan jourbert","Tech. service","12/11/2024 - 16/11/2024"]
[null,"William nyanungu","Engeneering","22/9/2024 - "]
[null,"Esperance  E.T.I","OHS","24/11/2024 - "]
[null,"Gerrit ferreira","OHS","30/9/2024 - "]
[null,"Shane Ryan","C.O.O","29/10/2024 - "]

{"sheet":"Meeting December 2024","index":16,"n_rows":47,"n_cols":6,"rows_kept":47,"cut":false,"hidden":true,"merged":[[1,1,1,4],[22,1,24,1],[29,1,30,1],[31,1,32,1],[33,1,36,1],[43,1,44,1],[26,1,28,1],[20,1,21,1],[18,1,19,1],[39,1,41,1]]}
[]
[null,"MEETING AND TRAINING IN DECEMBER 2024"]
[null,"DATE","AGENDA","NUMBER OF PEOPLE","CONSUMPTION"]
[null,"2024-02-12","Task force",20,"Lunch"]
[null,"2024-05-12","POLC ",8,"Lunch, Snacks, Softdrink"]
[null,"11/12/2024 to 12/12/2024","Safety training",10,"Lunch"]
[null,"17/12/2024","Budget review",5,"Lunch"]
[null,"16/12/2024 to 17/12/2024","Stock take",15,"Lunch, Softdrink"]
[null,"18/12/2024","ESIA Disclosure on local level",30,"Lunch,Snacks ,Beers"]
[null,"18/12/2024 to 20/12/2024","Bobcat operator training",14,"Lunch"]
[null,"19/12/2024","End month review and planning",12,"Lunch"]
[null,"20/12/2024","Visible felt leadership",17,"Lunch"]
[]
[]
[]
[]
[]
[null,"DATE","CONSUMPTION","NUMBER OF PEOPLE","UNITY PRICE","TOTAL AMOUNT"]
[null,"2024-02-12"," Lunch for Task force",20,5000,{"$f":"D19*E19","v":100000}]
[null,null,"Soft drinks forTask force",20,1200,{"$f":"D20*E20","v":24000}]
[null,"2024-03-12","Lunch for Guest in camp",21,4000,{"$f":"D21*E21","v":84000}]
[null,null," Dinner for Guest in camp",3,6000,18000]
[null,"2024-05-12","Lunch for POLC ",8,5000,40000]
[null,null,"Snacks for POLC",1,15000,15000]
[null,null,"Soft drinks for POLC",8,1200,9600]
[null,"2024-11-12","Lunch for safety training for (2 days)",20,4000,80000]
[null,"2024-12-12","Accomodation for safety Officer(E.T.I)",10,15000,150000]
[null,null,"Lunch for 2 safety Officer(E.T.I) 10 days",17,3000,51000]
[null,null,"Dinner for Safety officer (E.T.I)",10,3000,30000]
[null,"16/12/2024 ","Lunch for stock take  (2 days)",30,4000,120000]
[null,null,"Soft drinks for Stock take (2 days)",30,1200,36000]
[null,"17/12/2024","Lunch for Budget review",5,4000,20000]
[null,null,"Water for Budget review",1,19200,19200]
[null,"18/12/2024"," Lunch for ESIA Disclosure on Local Level",30,5000,150000]
[null,null,"Snacks for ESIA Disclosure on Local Level",1,47000,47000]
[null,null,"Beers and Softdrink",1,73500,73500]
[null,null,"Lunch for Bobcat training (3 days)",42,4000,168000]
[null,"19/12/2024","Lunch for End month review & planning",12,4000,48000]
[null,"20/12/2024","Lunch for Visible felt leadership training",17,4000,68000]
[null,"23/12/2024","Lunch for G.M visitor",4,3000,12000]
[null,null,"Soft drink for GM visitor",4,1200,4800]
[null,null,"Function for Recognition of MasoroTunnel",1,1204300,1204300]
[null,"26/12/2024","Refreshments for Engineering Support at night(breakdown)",1,84800,84800]
[null,"30/12/2024","Lunch for Auditor",4,3000,12000]
[null,null,"Soft drink for Aditor",3,1200,3600]
[]
[null,null,null,null,"Total",{"$f":"SUM(F19:F45)","v":2672800}]

{"sheet":"Guest December 2024","index":17,"n_rows":12,"n_cols":4,"rows_kept":12,"cut":false,"hidden":true,"merged":[]}
[]
[null,"NAMES","DEPARTMENT","TIME IN - TIME OUT"]
[null,"Pieter Albert","SML Change","11/12/2024 - 12/12/2024"]
[null,"Lina muller","SML Change","4/12/2024 - 12/12/2024"]
[null,"Siobhan jourbert","Tech. service","3/12/2024 - 13/12/2024"]
[null,"William nyanungu","Engeneering","22/9/2024 - 12/12/2024"]
[null,"Esperance  E.T.I","OHS","13/12/2024 - 20/12/2024"]
[null,"Gerrit ferreira","OHS","30/9/2024 - 16/12/2024"]
[null,"Shane Ryan","C.O.O","29/10/2024 - 20/12/2024"]
[null,"Chistopher","Mining","30/11/2024 - 20/12/2024"]
[null,"Joanne Daneel","SHEC","2/12/2024 - 12/12/2024"]
[null,"Chandela","SML Change","17/12/2024 - 21/12/2024"]

{"sheet":"Guest January 2025","index":18,"n_rows":14,"n_cols":4,"rows_kept":14,"cut":false,"hidden":true,"merged":[]}
[]
[null,"NAMES","DEPARTMENT","TIME IN - TIME OUT"]
[null,"William nyanungu","Engeneering","2/1/2025 - up to now"]
[null,"Gerrit ferreira","OHS","8/1/2025 - 29/1/2025"]
[null,"Siobhan","MRM","13/1/2025 - 15/1/2025"]
[null,"Chikwiri","MRM","13/1/2025 -15/1/2025"]
[null,"Joanne daneel","SHEC","13/1/2025 - 21/1/2025"]
[null,"(2)Visitor of ETEK","SHEC","15/1/2025 - 16/1/2025"]
[null,"(2) Visitor of SRA","SHEC","16/1/2025 - 17/1/2025"]
[null,"Timothy makubo","Supply chain","18/1/2025 - 30/4/2025"]
[null,"Shane ryan","C.O.O","21/1/2025 - 31/1/2025"]
[null,"Siobhan","MRM","23/1/2025 - 24/1/2025"]
[null,"Pieter Albert","H.R","26/1/2025 - "]
[null,"Frans","H.R","26/1/2025 - "]

{"sheet":"Meeting January 2025","index":19,"n_rows":143,"n_cols":6,"rows_kept":143,"cut":false,"hidden":true,"merged":[[44,1,49,1],[8,1,9,1],[50,1,54,1],[55,1,58,1],[59,1,62,1],[1,1,1,4],[4,1,5,1],[34,1,37,1],[38,1,39,1],[40,1,42,1],[63,1,65,1],[66,1,67,1],[68,1,70,1],[71,1,77,1],[78,1,81,1],[82,1,85,1],[86,1,92,1],[93,1,98,1],[99,1,102,1],[103,1,108,1],[132,1,140,1],[109,1,118,1],[119,1,124,1],[125,1,127,1],[128,1,131,1]]}
[]
[null,"MEETING AND TRAINING IN JANUARY 2025"]
[null,"DATE","AGENDA","NUMBER OF PEOPLE","CONSUMPTION"]
[null,"2025-03-01","Mine planning",15,"Break fast, Lunch"]
[null,"20/1/2025","Budget review",12,"Break fast, Lunch"]
[null,null,"Values ,Vision and Performance management training",33,"Break fast, Lunch"]
[null,"27/1/2025 to 31/1/2025","Supervisory programme Phase B Group 8 training",18,"Break fast, Lunch"]
[null,"30/1/2025","Site store Assistant training",26,"Break fast, Lunch"]
[null,"31/1/2025","Geologist Training",15,"Break fast, Lunch"]
[null,null,"Engagement with GM,HODs, HR department and REWU",40,"Beer and softdrink"]
[]
[]
[]
[null,null,"CONSUMPTION","NUMBER OF PEOPLE","UNITY PRICE","TOTAL AMOUNT"]
[null,null,"Lunch for The guest in camp(Weekend)(kawunga &meat)",1,6000,{"$f":"E15*D15","v":6000}]
[null,null,"Lunch for the training",225,4000,{"$f":"E16*D16","v":900000}]
[null,null,"Lunch for the visitor",83,3000,249000]
[null,null,"Lunch for The guest in camp(Weekend)(Chips,meat & dessert)",5,5000,25000]
[null,null,"Softdrinks for the Guests and visitors ",134,1200,160800]
[null,null,"Softdrinks and beer for Mining plan",1,230100,230100]
[null,null,"Break fast for group finance training",4,3500,14000]
[null,null,"Dinner for The guest in camp(Fish burger)",20,8000,160000]
[null,null,"Softdrinks and beer for The guest in camp",1,51300,51300]
[null,null,"Dinner for The guest in camp( chicken burger)",32,6500,208000]
[null,null,"Dinner for The guest in camp( Fish brochette, chips)",3,9500,28500]
[null,null,"Lunch for The guest in camp( Fish and chips)",2,12500,25000]
[null,null,"Dinner for The guest in camp( Rabit and chips)",3,10500,31500]
[null,null,"Function for Recognition of KaramboTunnel",1,1567600,1567600]
[null,null,"Engagement with GM,HODs, HR department and REWU",1,217300,217300]
[null,null,"Accomodation for Supervisory training(5 days)",30,15000,450000]
[]
[null,null,null,null,"TOTAL",{"$f":"SUM(F15:F30)","v":4324100}]
[]
[null,"DATE","CONSUMPTION","NUMBER OF PEOPLE","UNITY PRICE","TOTAL AMOUNT"]
[null,"2025-03-01","Lunch for mine planner",15,4000,{"$f":"D35*E35","v":60000}]
[null,null,"Lunch for Auditor",4,3000,{"$f":"D36*E36","v":12000}]
[null,null,"Soft drink for Auditor",4,1200,4800]
[null,null,"Drinks for Mining plan",1,230100,230100]
[null,"2025-08-01","Lunch for Environment Visitor",5,3000,15000]
[null,null,"Soft drink for Environment Visitor",6,1200,7200]
[null,"2025-10-01","Breakfast for finance group training",4,3500,14000]
[null,null,"Lunch for finance group training",3,3000,9000]
[null,null,"Soft drink for finance group training",2,1200,2400]
[null,"2025-11-01","Dinner for The guest in camp",1,8000,8000]
[null,"13/1/2025","Lunch for (ETEK) GUEST",5,5000,25000]
[null,null,"Lunch for The guest in camp",3,3000,9000]
[null,null,"Drinks for the guest in camp",1,13800,13800]
[null,null,"Water for (ETEK) GUEST",2,1200,2400]
[null,null,"Dinner for The guest in camp( chicken)",1,6500,6500]
[null,null,"Dinner for The guest in camp(Fish, Rabbit)",3,9500,28500]
[null,"14/1/2025","Lunch for The guest in camp",3,3000,9000]
[null,null,"Softdrink for The guest in camp",2,1200,2400]
[null,null,"Dinner for The guest in camp( chicken)",5,6500,32500]
[null,null,"Dinner for The guest in camp( Fish)",1,8000,8000]
[null,null,"Softdrink and beer for the guest in camp",1,12700,12700]
[null,"15/1/2025","Lunch for The guest in camp",2,3000,6000]
[null,null,"Dinner for The guest in camp( chicken)",3,6500,19500]
[null,null,"Dinner for The guest in camp( Fish)",1,8000,8000]
[null,null,"Drinks for The guest in camp",1,10000,10000]
[null,"16/1/2025","Breakfast for (Land acquisition) Guest",3,6500,19500]
[null,null,"Lunch for (Land acquisition) Guest",4,3000,12000]
[null,null,"Softdrink for (Land acquisition) Guest",6,1200,7200]
[null,null,"Dinner for The guest in camp( chicken)",2,6500,13000]
[null,"17/1/2025","Lunch for The guest in camp",5,3000,15000]
[null,null,"Drinks for The guest in camp",1,14800,14800]
[null,null,"Dinner for The guest in camp( chicken)",2,6500,13000]
[null,"18/1/2025","Dinner for The guest in camp( chicken)",2,6500,13000]
[null,null,"Softdrink for The guest in camp",2,1200,2400]
[null,"19/1/2025","Lunch for The guest in camp(Weekend)",2,12500,25000]
[null,null,"Lunch for The guest in camp(ugali ,meat) (Weekend)",1,3000,3000]
[null,null,"Softdrink for The guest in camp",5,1200,6000]
[null,"20/1/2025","Dinner for The guest in camp( Spagetti bolognaise)",2,8000,16000]
[null,null,"Dinner for The guest in camp( Fish brochette, chips)",1,10500,10500]
[null,null,"Lunch for The guest in camp",1,3000,3000]
[null,null,"Softdrink for The guest in camp",3,1200,3600]
[null,null,"Lunch for budget review",12,4000,48000]
[null,null,"Softdrink for budget review",12,1200,14400]
[null,null,"Lunch for Values ,Vision and Performance management training",33,4000,132000]
[null,"21/1/2025","Lunch for The guest in camp",1,3000,3000]
[null,null,"Softdrink for The guest in camp",5,1200,6000]
[null,null,"Dinner for The guest in camp( Spagetti bolognaise)",1,8000,8000]
[null,null,"Dinner for The guest in camp( chicken)",1,6500,6500]
[null,"22/1/2025","Lunch for The guest in camp",1,3000,3000]
[null,null,"Dinner for The guest in camp( Fish brochette, chips)",3,8000,24000]
[null,null,"Dinner for The guest in camp( chicken)",1,6500,6500]
[null,null,"Softdrink for The guest in camp",6,1200,7200]
[null,"23/1/2025","Lunch for CFO",1,3000,3000]
[null,null,"Softdrink for CFO",1,1200,1200]
[null,null,"Lunch for Auditor(Finance)",4,3000,12000]
[null,null,"Lunch for The guest in camp",2,3000,6000]
[null,null,"Dinner for The guest in camp( Spagetti bolognaise)",4,8000,32000]
[null,null,"Dinner for The guest in camp( chicken)",1,6500,6500]
[null,null,"Softdrink for The guest in camp",7,1200,8400]
[null,"24/1/2025","Lunch for CFO",1,3000,3000]
[null,null,"Softdrink for CFO",1,1200,1200]
[null,null,"Lunch for The guest in camp",1,3000,3000]
[null,null,"Dinner for The guest in camp( chicken and sweetfood)",2,10500,21000]
[null,null,"Dinner for The guest in camp( Beef cheese)",1,6500,6500]
[null,null,"Softdrink for The guest in camp",3,1200,3600]
[null,"25/1/2025","Function for Recognition of KaramboTunnel",1,1567600,1567600]
[null,null,"Lunch for The guest in camp",1,6000,6000]
[null,null,"Dinner for The guest in camp( Beef cheese)",1,6500,6500]
[null,null,"Softdrink for The guest in camp",2,1200,2400]
[null,"26/1/2025","Dinner for The guest in camp( chicken)",1,6500,6500]
[null,null,"Lunch for The guest in camp(Beef burger)",1,6500,6500]
[null,null,"Dinner for Supervisory training(5 days)",29,4000,116000]
[null,null,"Dinner for The guest in camp( Fish burger)",2,8000,16000]
[null,null,"Softdrink for The guest in camp",3,1200,3600]
[null,null,"Accomodation for Supervisory training(5 days)",30,15000,450000]
[null,"27/1/2025","Lunch for Supervisory training(5 days)",90,4000,360000]
[null,null,"Lunch for Procurement (visitor) ",5,4000,20000]
[null,null,"Lunch for The guest in camp",1,3000,3000]
[null,null,"Softdrinks for Procurement (visitor) ",5,1200,6000]
[null,null,"Softdrink for The guest in camp",5,1200,6000]
[null,null,"Dinner for The guest in camp( Fish)",2,8000,16000]
[null,null,"Dinner for The guest in camp( Spagetti bolognaise)",2,8000,16000]
[null,null,"Dinner for The guest in camp( Beef cheese)",1,6500,6500]
[null,null,"GM lunch",1,3000,3000]
[null,null,"Soft drinks (Big fanta)",1,3000,3000]
[null,"28/1/2025","Lunch for SHEC committe",13,3000,39000]
[null,null,"Softdrinks for SHEC committee",13,1200,15600]
[null,null,"Lunch for The guest in camp",1,3000,3000]
[null,null,"Dinner for The guest in camp(igisafuriya)",1,6500,6500]
[null,null,"Dinner for The guest in camp( Fish)",1,8000,8000]
[null,null,"Dinner for The guest in camp( chicken)",1,6500,6500]
[null,"29/1/2025","Lunch for The guest in camp",1,3000,3000]
[null,null,"Dinner for The guest in camp( chicken)",1,6500,6500]
[null,null,"Softdrink for The guest in camp",5,1200,6000]
[null,"30/1/2025","Lunch for The guest in camp",1,3000,3000]
[null,null,"Dinner for The guest in camp( chicken)",2,6500,13000]
[null,null,"Softdrink for The guest in camp",7,1200,8400]
[null,null,"Site store Assistant training",26,4000,104000]
[null,"31/1/2025","Geologist Training",15,4000,60000]
[null,null,"Engagement with GM,HODs, HR department and REWU",1,217300,217300]
[null,null,"Lunch for CFO",1,3000,3000]
[null,null,"Softdrink for CFO",1,1200,1200]
[null,null,"Lunch for GM visitor (Deputy)",20,3000,60000]
[null,null,"Softdrink for GM visitor (Deputy)",20,1200,24000]
[null,null,"Lunch for The guest in camp",1,3000,3000]
[null,null,"Dinner for The guest in camp( Beef )",1,6500,6500]
[null,null,"Softdrink for The guest in camp",6,1200,7200]
[]
[null,null,null,null,"Total",{"$f":"SUM(F35:F141)","v":4324100}]

{"sheet":"January 2025","index":20,"n_rows":111,"n_cols":6,"rows_kept":111,"cut":false,"hidden":false,"merged":[[87,1,92,1],[93,1,95,1],[96,1,99,1],[100,1,108,1],[50,1,53,1],[54,1,60,1],[61,1,66,1],[67,1,70,1],[71,1,76,1],[77,1,86,1],[27,1,30,1],[31,1,33,1],[34,1,35,1],[36,1,38,1],[39,1,45,1],[46,1,49,1],[2,1,5,1],[6,1,7,1],[8,1,10,1],[12,1,17,1],[18,1,22,1],[23,1,26,1]]}
[]
[null,"DATE","CONSUMPTION","NUMBER OF PEOPLE","UNITY PRICE","TOTAL AMOUNT"]
[null,"2025-03-01","Lunch for mine planner",15,4000,{"$f":"D3*E3","v":60000}]
[null,null,"Lunch for Auditor",4,3000,{"$f":"D4*E4","v":12000}]
[null,null,"Soft drink for Auditor",4,1200,4800]
[null,null,"Drinks for Mining plan",1,230100,230100]
[null,"2025-08-01","Lunch for Environment Visitor",5,3000,15000]
[null,null,"Soft drink for Environment Visitor",6,1200,7200]
[null,"2025-10-01","Breakfast for finance group training",4,3500,14000]
[null,null,"Lunch for finance group training",3,3000,9000]
[null,null,"Soft drink for finance group training",2,1200,2400]
[null,"2025-11-01","Dinner for The guest in camp",1,8000,8000]
[null,"13/1/2025","Lunch for (ETEK) GUEST",5,5000,25000]
[null,null,"Lunch for The guest in camp",3,3000,9000]
[null,null,"Drinks for the guest in camp",1,13800,13800]
[null,null,"Water for (ETEK) GUEST",2,1200,2400]
[null,null,"Dinner for The guest in camp( chicken)",1,6500,6500]
[null,null,"Dinner for The guest in camp(Fish, Rabbit)",3,9500,28500]
[null,"14/1/2025","Lunch for The guest in camp",3,3000,9000]
[null,null,"Softdrink for The guest in camp",2,1200,2400]
[null,null,"Dinner for The guest in camp( chicken)",5,6500,32500]
[null,null,"Dinner for The guest in camp( Fish)",1,8000,8000]
[null,null,"Softdrink and beer for the guest in camp",1,12700,12700]
[null,"15/1/2025","Lunch for The guest in camp",2,3000,6000]
[null,null,"Dinner for The guest in camp( chicken)",3,6500,19500]
[null,null,"Dinner for The guest in camp( Fish)",1,8000,8000]
[null,null,"Drinks for The guest in camp",1,10000,10000]
[null,"16/1/2025","Breakfast for (Land acquisition) Guest",3,6500,19500]
[null,null,"Lunch for (Land acquisition) Guest",4,3000,12000]
[null,null,"Softdrink for (Land acquisition) Guest",6,1200,7200]
[null,null,"Dinner for The guest in camp( chicken)",2,6500,13000]
[null,"17/1/2025","Lunch for The guest in camp",5,3000,15000]
[null,null,"Drinks for The guest in camp",1,14800,14800]
[null,null,"Dinner for The guest in camp( chicken)",2,6500,13000]
[null,"18/1/2025","Dinner for The guest in camp( chicken)",2,6500,13000]
[null,null,"Softdrink for The guest in camp",2,1200,2400]
[null,"19/1/2025","Lunch for The guest in camp(Weekend)",2,12500,25000]
[null,null,"Lunch for The guest in camp(ugali ,meat) (Weekend)",1,3000,3000]
[null,null,"Softdrink for The guest in camp",5,1200,6000]
[null,"20/1/2025","Dinner for The guest in camp( Spagetti bolognaise)",2,8000,16000]
[null,null,"Dinner for The guest in camp( Fish brochette, chips)",1,10500,10500]
[null,null,"Lunch for The guest in camp",1,3000,3000]
[null,null,"Softdrink for The guest in camp",3,1200,3600]
[null,null,"Lunch for budget review",12,4000,48000]
[null,null,"Softdrink for budget review",12,1200,14400]
[null,null,"Lunch for Values ,Vision and Performance management training",33,4000,132000]
[null,"21/1/2025","Lunch for The guest in camp",1,3000,3000]
[null,null,"Softdrink for The guest in camp",5,1200,6000]
[null,null,"Dinner for The guest in camp( Spagetti bolognaise)",1,8000,8000]
[null,null,"Dinner for The guest in camp( chicken)",1,6500,6500]
[null,"22/1/2025","Lunch for The guest in camp",1,3000,3000]
[null,null,"Dinner for The guest in camp( Fish brochette, chips)",3,8000,24000]
[null,null,"Dinner for The guest in camp( chicken)",1,6500,6500]
[null,null,"Softdrink for The guest in camp",6,1200,7200]
[null,"23/1/2025","Lunch for CFO",1,3000,3000]
[null,null,"Softdrink for CFO",1,1200,1200]
[null,null,"Lunch for Auditor(Finance)",4,3000,12000]
[null,null,"Lunch for The guest in camp",2,3000,6000]
[null,null,"Dinner for The guest in camp( Spagetti bolognaise)",4,8000,32000]
[null,null,"Dinner for The guest in camp( chicken)",1,6500,6500]
[null,null,"Softdrink for The guest in camp",7,1200,8400]
[null,"24/1/2025","Lunch for CFO",1,3000,3000]
[null,null,"Softdrink for CFO",1,1200,1200]
[null,null,"Lunch for The guest in camp",1,3000,3000]
[null,null,"Dinner for The guest in camp( chicken and sweetfood)",2,10500,21000]
[null,null,"Dinner for The guest in camp( Beef cheese)",1,6500,6500]
[null,null,"Softdrink for The guest in camp",3,1200,3600]
[null,"25/1/2025","Function for Recognition of KaramboTunnel",1,1567600,1567600]
[null,null,"Lunch for The guest in camp",1,6000,6000]
[null,null,"Dinner for The guest in camp( Beef cheese)",1,6500,6500]
[null,null,"Softdrink for The guest in camp",2,1200,2400]
[null,"26/1/2025","Dinner for The guest in camp( chicken)",1,6500,6500]
[null,null,"Lunch for The guest in camp(Beef burger)",1,6500,6500]
[null,null,"Dinner for Supervisory training(5 days)",29,4000,116000]
[null,null,"Dinner for The guest in camp( Fish burger)",2,8000,16000]
[null,null,"Softdrink for The guest in camp",3,1200,3600]
[null,null,"Accomodation for Supervisory training(5 days)",30,15000,450000]
[null,"27/1/2025","Lunch for Supervisory training(5 days)",90,4000,360000]
[null,null,"Lunch for Procurement (visitor) ",5,4000,20000]
[null,null,"Lunch for The guest in camp",1,3000,3000]
[null,null,"Softdrinks for Procurement (visitor) ",5,1200,6000]
[null,null,"Softdrink for The guest in camp",5,1200,6000]
[null,null,"Dinner for The guest in camp( Fish)",2,8000,16000]
[null,null,"Dinner for The guest in camp( Spagetti bolognaise)",2,8000,16000]
[null,null,"Dinner for The guest in camp( Beef cheese)",1,6500,6500]
[null,null,"GM lunch",1,3000,3000]
[null,null,"Soft drinks (Big fanta)",1,3000,3000]
[null,"28/1/2025","Lunch for SHEC committe",13,3000,39000]
[null,null,"Softdrinks for SHEC committee",13,1200,15600]
[null,null,"Lunch for The guest in camp",1,3000,3000]
[null,null,"Dinner for The guest in camp(igisafuriya)",1,6500,6500]
[null,null,"Dinner for The guest in camp( Fish)",1,8000,8000]
[null,null,"Dinner for The guest in camp( chicken)",1,6500,6500]
[null,"29/1/2025","Lunch for The guest in camp",1,3000,3000]
[null,null,"Dinner for The guest in camp( chicken)",1,6500,6500]
[null,null,"Softdrink for The guest in camp",5,1200,6000]
[null,"30/1/2025","Lunch for The guest in camp",1,3000,3000]
[null,null,"Dinner for The guest in camp( chicken)",2,6500,13000]
[null,null,"Softdrink for The guest in camp",7,1200,8400]
[null,null,"Site store Assistant training",26,4000,104000]
[null,"31/1/2025","Geologist Training",15,4000,60000]
[null,null,"Engagement with GM,HODs, HR department and REWU",1,217300,217300]
[null,null,"Lunch for CFO",1,3000,3000]
[null,null,"Softdrink for CFO",1,1200,1200]
[null,null,"Lunch for GM visitor (Deputy)",20,3000,60000]
[null,null,"Softdrink for GM visitor (Deputy)",20,1200,24000]
[null,null,"Lunch for The guest in camp",1,3000,3000]
[null,null,"Dinner for The guest in camp( Beef )",1,6500,6500]
[null,null,"Softdrink for The guest in camp",6,1200,7200]
[]
[null,null,null,null,"Total",{"$f":"SUM(F3:F109)","v":4324100}]